bitfinex/quotes_BTCUSD_20251120
["timestamp","ask_amount","ask_price","bid_price","bid_amount"]
[1763680196400,1.096575,87835.0,87792.0,0.01783]
[1763680196401,0.717345,87827.0,87792.0,0.01783]
[1763680196663,0.71133,87805.0,87785.0,0.01783]
[1763680196858,0.71133,87805.0,87781.0,0.01783]
[1763680197136,0.323,87806.0,87781.0,0.01783]
[1763680197137,0.717345,87803.0,87781.0,0.01783]
[1763680197489,0.03273,87802.0,87781.0,0.01783]
[1763680197677,0.717345,87801.0,87781.0,0.01783]
[1763680198288,1.217345,87803.0,87781.0,0.01783]
[1763680198484,0.717345,87803.0,87782.0,0.03443]
[1763680198692,0.107122,87803.0,87782.0,0.03443]
[1763680199107,0.323,87802.0,87782.0,0.03443]
[1763680199320,0.323,87806.0,87803.0,0.01783]
[1763680199657,0.323,87820.0,87805.0,0.02369]
[1763680199950,0.323,87814.0,87803.0,0.01783]
[1763680200152,0.124583,87813.0,87803.0,0.01783]
[1763680200371,0.01176,87822.0,87804.0,0.14919708]
[1763680200570,0.26348508,87821.0,87805.0,0.03443]
[1763680200712,0.443991,87820.0,87803.0,0.01783]
[1763680200912,0.443991,87820.0,87798.0,0.01783]
[1763680200913,0.323,87816.0,87798.0,0.01783]
[1763680201101,0.03039799,87851.0,87819.0,0.02369]
[1763680201306,0.03273,87869.0,87845.0,0.02369]
[1763680201548,0.00922,87852.0,87835.0,0.05226]
[1763680201749,0.00922,87854.0,87836.0,0.03443]
[1763680202155,0.5,87868.0,87845.0,0.02369]
[1763680202156,0.01987097,87846.0,87845.0,0.02369]
[1763680202357,0.01211661,87865.0,87845.0,0.02369]
[1763680202563,0.01787059,87846.0,87845.0,0.02369]
[1763680202774,0.0004,87880.0,87845.0,0.05821]
[1763680202974,0.11476708,87869.0,87845.0,0.05821]
[1763680203178,0.01786997,87846.0,87835.0,0.05235]
[1763680203405,0.576696,87868.0,87835.0,0.05235]
[1763680203606,0.11476708,87869.0,87835.0,0.05235]
[1763680203607,0.323,87865.0,87845.0,0.02465]
[1763680203809,0.370928,87864.0,87845.0,0.02465]
[1763680204423,0.323,87858.0,87845.0,0.02465]
[1763680204673,0.323,87856.0,87845.0,0.02465]
[1763680205629,0.323,87854.0,87845.0,0.02465]
[1763680205857,0.576696,87859.0,87845.0,0.02465]
[1763680206044,0.576696,87858.0,87845.0,0.02465]
[1763680206226,0.513579,87859.0,87845.0,0.02465]
[1763680206634,0.01786984,87856.0,87845.0,0.02465]
[1763680206882,0.111812,87855.0,87845.0,0.02465]
[1763680207085,0.111812,87855.0,87826.0,0.00024844]
[1763680207086,0.576696,87854.0,87829.0,0.01742]
[1763680207289,0.576696,87853.0,87829.0,0.01742]
[1763680207492,0.11476708,87855.0,87829.0,0.05194]
[1763680207493,0.576696,87854.0,87829.0,0.05194]
[1763680208102,0.576696,87854.0,87829.0,0.01742]
[1763680208279,0.11476708,87841.0,87826.0,0.00024844]
[1763680208481,0.576696,87840.0,87826.0,0.00024844]
[1763680208946,0.323,87837.0,87826.0,0.00024844]
[1763680209120,0.323,87833.0,87826.0,0.00024844]
[1763680209370,0.323,87831.0,87826.0,0.00024844]
[1763680209499,0.0323,87830.0,87826.0,0.00024844]
[1763680209711,0.899696,87827.0,87826.0,0.00024844]
[1763680209917,0.323,87827.0,87826.0,0.00024844]
[1763680210131,0.323,87827.0,87826.0,0.05941844]
[1763680210652,0.684556,87854.0,87826.0,0.05941844]
[1763680210866,0.323,87850.0,87827.0,0.03452]
[1763680211184,0.323,87846.0,87827.0,0.14928708]
[1763680211410,0.11476708,87855.0,87828.0,0.03452]
[1763680211411,0.323,87844.0,87828.0,0.03452]
[1763680211627,0.25111763,87880.0,87854.0,0.02465]
[1763680211628,0.5,87868.0,87854.0,0.02465]
[1763680211834,0.5,87868.0,87855.0,0.02465]
[1763680212257,0.323,87867.0,87855.0,0.02465]
[1763680212489,0.01215696,87870.0,87855.0,0.02465]
[1763680212678,0.323,87858.0,87845.0,0.01742]
[1763680212808,0.704993,87859.0,87845.0,0.01742]
[1763680213006,0.323,87858.0,87845.0,0.05194]
[1763680213206,0.323,87856.0,87855.0,0.001]
[1763680213447,0.476638,87856.0,87845.0,0.05194]
[1763680213670,0.323,87856.0,87855.0,0.02465]
[1763680214052,0.323,87856.0,87855.0,0.05917]
[1763680214380,0.01218617,87877.0,87845.0,0.01842]
[1763680214525,0.323,87858.0,87846.0,0.03452]
[1763680214940,0.31671043,87858.0,87846.0,0.03452]
[1763680215159,0.31671043,87858.0,87857.0,0.01742]
[1763680215750,0.11476708,87864.0,87852.0,0.01742]
[1763680215953,0.576696,87863.0,87855.0,0.001]
[1763680216123,0.420113,87857.0,87845.0,0.01742]
[1763680216332,0.21418,87857.0,87845.0,0.01742]
[1763680216964,0.323,87854.0,87845.0,0.01742]
[1763680217161,0.323,87852.0,87845.0,0.01742]
[1763680217398,0.323,87856.0,87845.0,0.01742]
[1763680217595,0.323,87854.0,87845.0,0.01742]
[1763680217779,0.323,87852.0,87845.0,0.01742]
[1763680217974,0.34086992,87852.0,87845.0,0.01742]
[1763680218180,0.34086992,87852.0,87840.0,0.16602]
[1763680218181,0.323,87850.0,87840.0,0.1486]
[1763680218358,0.323,87846.0,87840.0,0.1486]
[1763680218561,0.323,87844.0,87840.0,0.1486]
[1763680218761,0.11476708,87850.0,87824.0,0.03452]
[1763680218762,0.323,87840.0,87827.0,0.1486]
[1763680219007,0.323,87840.0,87827.0,0.18312]
[1763680219783,0.323,87840.0,87827.0,0.18412]
[1763680220136,0.323,87849.0,87839.0,0.02465]
[1763680220286,0.01786992,87852.0,87839.0,0.02465]
[1763680220485,0.205395,87849.0,87839.0,0.02465]
[1763680220686,0.01786992,87852.0,87840.0,0.03452]
[1763680220887,0.01786992,87852.0,87851.0,0.01742]
[1763680221096,0.01786992,87852.0,87851.0,0.04207]
[1763680221517,0.01786992,87852.0,87851.0,0.01742]
[1763680221915,0.01786992,87852.0,87846.0,0.01742]
[1763680222118,0.01786992,87852.0,87851.0,0.02465]
[1763680222317,0.01786992,87852.0,87846.0,0.01742]
[1763680222602,0.01786992,87852.0,87851.0,0.02465]
[1763680223001,0.01786992,87852.0,87829.0,0.1486]
[1763680223002,0.01786992,87852.0,87844.0,0.01742]
[1763680224204,0.576696,87857.0,87841.0,0.01742]
[1763680224383,0.362097,87850.0,87841.0,0.01742]
[1763680224792,0.362097,87850.0,87830.0,0.03452]
[1763680224993,0.01787146,87851.0,87823.0,0.03452]
[1763680224994,0.576696,87848.0,87823.0,0.03452]
[1763680225205,0.576696,87848.0,87815.0,0.03452]
[1763680225560,0.11476708,87849.0,87808.0,0.01742]
[1763680225561,0.04961894,87832.0,87808.0,0.01742]
[1763680225963,0.11476708,87835.0,87802.0,0.01742]
[1763680225964,0.6083808,87831.0,87802.0,0.01742]
[1763680226266,0.576696,87827.0,87802.0,0.01742]
[1763680226482,0.576696,87827.0,87783.0,0.01742]
[1763680226483,0.09430338,87827.0,87783.0,0.01742]
[1763680226815,0.09430338,87827.0,87775.0,0.01742]
[1763680226816,0.04961894,87813.0,87775.0,0.01742]
[1763680227017,0.323,87817.0,87775.0,0.01742]
[1763680227018,0.576696,87790.0,87775.0,0.01742]
[1763680227161,0.430111,87790.0,87775.0,0.01742]
[1763680227361,0.323,87796.0,87789.0,0.01742]
[1763680227601,0.323,87794.0,87789.0,0.01742]
[1763680227775,0.11476708,87805.0,87789.0,0.01742]
[1763680227776,0.323,87790.0,87789.0,0.01742]
[1763680227991,0.55263,87790.0,87789.0,0.01742]
[1763680228192,0.323,87790.0,87789.0,0.01742]
[1763680228390,0.323,87788.0,87776.0,0.03452]
[1763680228593,0.193571,87788.0,87784.0,0.01742]
[1763680228797,0.11149171,87866.0,87784.0,0.01742]
[1763680228798,0.04071764,87835.0,87785.0,0.01366976]
[1763680229013,0.03302,87849.0,87810.0,0.56171597]
[1763680229014,0.03167088,87834.0,87810.0,0.56171597]
[1763680229219,0.01856,87856.0,87812.0,0.05210249]
[1763680229220,0.03167088,87833.0,87812.0,0.05210249]
[1763680229435,0.01856,87856.0,87813.0,0.0136654]
[1763680229642,0.01856,87856.0,87811.0,0.323]
[1763680229643,0.03302,87855.0,87830.0,0.11476708]
[1763680229853,0.01856,87856.0,87831.0,0.0136626]
[1763680230049,0.01856,87856.0,87832.0,0.01366244]
[1763680230422,0.04216,87866.0,87830.0,0.11476708]
[1763680230652,0.00914,87866.0,87832.0,0.05210249]
[1763680230878,0.01856,87874.0,87832.0,0.05210249]
[1763680231110,0.01856,87874.0,87830.0,0.67648305]
[1763680231111,0.190285,87872.0,87831.0,0.05210249]
[1763680231361,0.05602356,87873.0,87844.0,0.11476708]
[1763680231362,0.01786795,87864.0,87844.0,0.11476708]
[1763680233411,0.01786781,87860.0,87844.0,0.11476708]
[1763680235302,0.01786795,87864.0,87858.0,0.11476708]
[1763680235914,0.34156,87890.0,87858.0,0.11476708]
[1763680236114,0.01856,87890.0,87858.0,0.11476708]
[1763680236573,0.323,87888.0,87858.0,0.11476708]
[1763680236775,0.01856,87890.0,87858.0,0.11476708]
[1763680236982,0.323,87888.0,87858.0,0.11476708]
[1763680237186,0.323,87886.0,87858.0,0.11476708]
[1763680237388,0.01786474,87883.0,87844.0,0.11476708]
[1763680237560,0.323,87878.0,87859.0,0.11476708]
[1763680237759,0.323,87878.0,87845.0,0.05210249]
[1763680237971,0.03633,87877.0,87858.0,0.001]
[1763680238605,0.01739,87859.0,87844.0,0.11476708]
[1763680238829,0.04177,87859.0,87844.0,0.11476708]
[1763680239337,0.01786771,87856.0,87844.0,0.11476708]
[1763680239512,0.01786771,87856.0,87830.0,0.11476708]
[1763680239513,0.04177,87845.0,87835.0,0.03057281]
[1763680239806,0.04177,87845.0,87832.0,0.03057281]
[1763680240015,0.04177,87845.0,87827.0,0.03057281]
[1763680240562,0.04177,87828.0,87827.0,0.03057281]
[1763680240769,0.454895,87827.0,87818.0,0.00024848]
[1763680240970,0.454895,87827.0,87795.0,0.0815275]
[1763680240971,0.323,87818.0,87804.0,0.03057281]
[1763680241175,0.323,87818.0,87776.0,0.24447476]
[1763680241176,0.454895,87804.0,87795.0,0.03057281]
[1763680241378,0.454895,87804.0,87766.0,0.10231053]
[1763680241379,0.323,87794.0,87767.0,0.03057281]
[1763680241582,0.323,87794.0,87740.0,0.12251051]
[1763680241583,0.323,87789.0,87766.0,0.03057281]
[1763680241938,0.02438,87791.0,87756.0,0.15553083]
[1763680242159,0.02438,87791.0,87756.0,0.11476708]
[1763680242160,0.323,87785.0,87756.0,0.11476708]
[1763680242773,0.35933,87785.0,87756.0,0.11476708]
[1763680242904,0.465973,87783.0,87756.0,0.11476708]
[1763680243104,0.323,87783.0,87770.0,0.11476708]
[1763680243607,0.323,87783.0,87771.0,0.01146374]
[1763680243950,0.03633,87806.0,87770.0,0.11476708]
[1763680244153,0.323,87812.0,87770.0,0.11476708]
[1763680244154,0.323,87801.0,87770.0,0.11476708]
[1763680244363,0.01206192,87815.0,87770.0,0.11476708]
[1763680244364,0.323,87797.0,87770.0,0.11476708]
[1763680244592,0.11476708,87799.0,87770.0,0.11476708]
[1763680244745,0.323,87798.0,87770.0,0.11576708]
[1763680244932,0.323,87798.0,87770.0,0.11476708]
[1763680245134,0.137199,87797.0,87770.0,0.11476708]
[1763680245342,0.323,87798.0,87770.0,0.11476708]
[1763680246167,0.323,87798.0,87760.0,0.0003]
[1763680246168,0.03633,87797.0,87760.0,0.0003]
[1763680246342,0.323,87793.0,87760.0,0.0003]
[1763680246543,0.323,87791.0,87760.0,0.0003]
[1763680246785,0.323,87787.0,87760.0,0.0003]
[1763680247216,0.43902,87787.0,87786.0,0.00099432]
[1763680247550,0.507598,87787.0,87786.0,0.00099432]
[1763680247740,0.38371,87787.0,87786.0,0.00099432]
[1763680247936,0.515986,87787.0,87786.0,0.00099432]
[1763680248143,0.51881537,87787.0,87786.0,0.00099432]
[1763680248339,0.50589,87787.0,87786.0,0.00099432]
[1763680249766,0.06071,87787.0,87786.0,0.00099432]
[1763680249966,0.492796,87787.0,87786.0,0.00099432]
[1763680251113,0.454895,87783.0,87760.0,0.0003]
[1763680251267,0.641035,87781.0,87760.0,0.0003]
[1763680251473,0.323,87779.0,87760.0,0.0003]
[1763680251787,0.323,87775.0,87760.0,0.0003]
[1763680252000,0.01739,87761.0,87760.0,0.0003]
[1763680252397,0.03527317,87761.0,87760.0,0.0003]
[1763680252599,0.09598317,87761.0,87760.0,0.0003]
[1763680252998,0.61007617,87761.0,87760.0,0.0003]
[1763680257258,0.41898317,87761.0,87760.0,0.0003]
[1763680257682,0.41898317,87761.0,87760.0,0.00110827]
[1763680258049,0.56514417,87761.0,87760.0,0.00110827]
[1763680259283,0.41898317,87761.0,87760.0,0.00110827]
[1763680259707,0.56578417,87761.0,87760.0,0.00110827]
[1763680259908,0.41898317,87761.0,87760.0,0.00110827]
[1763680260183,0.56545517,87761.0,87760.0,0.00110827]
[1763680260407,0.34088317,87761.0,87760.0,0.00110827]
[1763680260802,0.43568149,87761.0,87760.0,0.00110827]
[1763680261017,0.777895,87760.0,87750.0,0.0002]
[1763680261183,0.496665,87751.0,87750.0,0.0002]
[1763680261389,0.496665,87751.0,87740.0,0.0002]
[1763680261390,0.32227012,87748.0,87740.0,0.0002]
[1763680261600,0.479275,87741.0,87740.0,0.0002]
[1763680262208,0.221485,87741.0,87740.0,0.0002]
[1763680262922,0.221485,87741.0,87703.0,0.11476708]
[1763680263131,0.478525,87738.0,87703.0,0.11476708]
[1763680263398,0.478525,87738.0,87690.0,0.0002]
[1763680263399,0.50699749,87737.0,87690.0,0.11496708]
[1763680263704,0.630975,87719.0,87690.0,0.11496708]
[1763680263909,0.05224,87718.0,87690.0,0.11496708]
[1763680264265,0.05224,87718.0,87690.0,0.0002]
[1763680264266,0.15633708,87701.0,87690.0,0.0002]
[1763680264506,0.323,87698.0,87690.0,0.0002]
[1763680264694,0.15633708,87701.0,87655.0,0.11476708]
[1763680264695,0.323,87690.0,87655.0,0.11476708]
[1763680264896,0.323,87688.0,87656.0,0.01368987]
[1763680265098,0.01794,87691.0,87669.0,0.11476708]
[1763680265273,0.10189,87690.0,87669.0,0.11476708]
[1763680265482,0.13619,87690.0,87669.0,0.11476708]
[1763680265682,0.323,87686.0,87655.0,0.11476708]
[1763680265903,0.323,87686.0,87669.0,0.11476708]
[1763680266265,0.323,87686.0,87654.0,0.005]
[1763680266266,0.11476708,87681.0,87654.0,0.005]
[1763680266632,0.11476708,87681.0,87655.0,0.11476708]
[1763680266828,0.11476708,87681.0,87654.0,0.005]
[1763680266829,0.323,87678.0,87654.0,0.005]
[1763680267056,0.01794,87655.0,87654.0,0.005]
[1763680267173,0.04157,87655.0,87654.0,0.005]
[1763680267373,0.07587,87655.0,87654.0,0.005]
[1763680267600,0.01794,87655.0,87654.0,0.005]
[1763680268205,0.427855,87655.0,87654.0,0.005]
[1763680268387,0.427855,87655.0,87617.0,0.06114563]
[1763680268388,0.07587,87655.0,87623.0,0.01369503]
[1763680268587,0.02363,87651.0,87618.0,0.01369581]
[1763680268786,0.641677,87649.0,87617.0,0.11476708]
[1763680269128,0.05995,87650.0,87590.0,0.00999999]
[1763680269129,0.323,87646.0,87590.0,0.00999999]
[1763680269286,0.11476708,87637.0,87590.0,0.00999999]
[1763680269492,0.11476708,87637.0,87604.0,0.11476708]
[1763680269735,0.0343,87636.0,87604.0,0.11476708]
[1763680270237,0.0343,87636.0,87576.0,0.0059455]
[1763680270238,0.04157,87605.0,87576.0,0.0059455]
[1763680270658,0.0343,87604.0,87576.0,0.0059455]
[1763680271076,0.01794,87605.0,87576.0,0.0059455]
[1763680271274,0.01794,87605.0,87577.0,0.01370222]
[1763680271741,0.01794,87605.0,87576.0,0.0059455]
[1763680271742,0.01794,87611.0,87592.0,0.11476708]
[1763680271894,0.01794,87611.0,87604.0,0.001]
[1763680272092,0.05224,87611.0,87578.0,0.11476708]
[1763680272319,0.05224,87611.0,87538.0,0.0059455]
[1763680272320,0.454895,87610.0,87573.0,0.11476708]
[1763680272714,0.454895,87610.0,87538.0,0.0059455]
[1763680272715,0.11476708,87604.0,87558.0,0.00516097]
[1763680272945,0.01794,87591.0,87558.0,0.00516097]
[1763680273152,0.161332,87586.0,87558.0,0.0055774]
[1763680273374,0.01794,87591.0,87558.0,0.0055774]
[1763680273571,0.153093,87590.0,87558.0,0.0055774]
[1763680273745,0.100397,87590.0,87563.0,0.11476708]
[1763680273945,0.05224,87591.0,87563.0,0.11476708]
[1763680273946,0.01794,87591.0,87564.0,0.01370426]
[1763680274148,0.174141,87590.0,87564.0,0.01370426]
[1763680274322,0.0343,87589.0,87558.0,0.0055774]
[1763680274516,0.220498,87588.0,87565.0,0.11476708]
[1763680274728,0.281393,87580.0,87558.0,0.0055774]
[1763680274930,0.632365,87580.0,87558.0,0.0055774]
[1763680275221,0.07203461,87588.0,87558.0,0.0055774]
[1763680275222,0.07203461,87588.0,87559.0,0.11476708]
[1763680275431,0.05210249,87617.0,87560.0,0.01370488]
[1763680275432,0.0343,87587.0,87560.0,0.01370488]
[1763680275650,0.454895,87584.0,87558.0,0.0055774]
[1763680275870,0.454895,87584.0,87559.0,0.11476708]
[1763680276086,0.0343,87583.0,87559.0,0.11476708]
[1763680276302,0.10628,87582.0,87560.0,0.01370488]
[1763680276514,0.11476708,87599.0,87559.0,0.11476708]
[1763680276515,0.323,87594.0,87559.0,0.11476708]
[1763680276726,0.0179235,87580.0,87560.0,0.01370488]
[1763680277133,0.0179235,87580.0,87573.0,0.11476708]
[1763680277410,0.0179235,87580.0,87574.0,0.01370269]
[1763680278495,0.0179235,87580.0,87559.0,0.11476708]
[1763680278496,0.0179235,87580.0,87575.0,0.11476708]
[1763680278706,0.0179235,87580.0,87576.0,0.01370238]
[1763680278923,0.0179235,87580.0,87579.0,0.00563929]
[1763680279142,0.0179235,87580.0,87579.0,0.0193412]
[1763680279354,0.0179235,87580.0,87579.0,0.00563929]
[1763680280009,0.0179235,87580.0,87579.0,0.0193412]
[1763680280246,0.01794,87615.0,87580.0,0.05210249]
[1763680280530,0.21999998,87660.0,87576.0,0.323]
[1763680280531,0.180046,87621.0,87594.0,0.11476708]
[1763680280748,0.01296738,87634.0,87610.0,0.70759715]
[1763680280974,0.01794,87640.0,87600.0,0.70759715]
[1763680280975,0.0343,87635.0,87600.0,0.70759715]
[1763680281191,0.679607,87634.0,87600.0,0.70759715]
[1763680281399,0.639615,87634.0,87600.0,0.70759715]
[1763680281638,0.639615,87634.0,87594.0,0.11476708]
[1763680281639,0.11476708,87664.0,87594.0,0.11476708]
[1763680281640,0.5,87648.0,87617.0,0.11476708]
[1763680281910,0.051794,87648.0,87620.0,0.70759715]
[1763680282127,0.051794,87648.0,87631.0,0.11476708]
[1763680282128,0.5,87648.0,87631.0,0.11476708]
[1763680282357,0.19906708,87647.0,87617.0,0.11476708]
[1763680282605,0.454895,87646.0,87611.0,0.11476708]
[1763680282830,0.431281,87650.0,87625.0,0.11476708]
[1763680283058,0.316262,87648.0,87625.0,0.11476708]
[1763680283296,0.117399,87648.0,87625.0,0.11476708]
[1763680283526,0.177034,87650.0,87625.0,0.11518351]
[1763680283734,0.01791201,87643.0,87625.0,0.11518351]
[1763680284868,0.01794,87626.0,87625.0,0.00041643]
[1763680285079,0.04157,87626.0,87625.0,0.00041643]
[1763680285295,0.07587,87626.0,87625.0,0.00041643]
[1763680286131,0.01791201,87643.0,87625.0,0.00041643]
[1763680286132,0.01794,87632.0,87625.0,0.00041643]
[1763680286302,0.277301,87631.0,87625.0,0.00041643]
[1763680287072,0.231152,87631.0,87625.0,0.00041643]
[1763680288170,0.478525,87626.0,87625.0,0.00041643]
[1763680288733,0.01794,87632.0,87625.0,0.00041643]
[1763680290038,0.05224,87632.0,87625.0,0.00041643]
[1763680290820,0.01794,87632.0,87625.0,0.00041643]
[1763680291024,0.454895,87631.0,87625.0,0.00041643]
[1763680291352,0.01791201,87643.0,87625.0,0.00041643]
[1763680291646,0.01791201,87643.0,87631.0,0.00401678]
[1763680291823,0.01791201,87643.0,87626.0,0.11476708]
[1763680292024,0.01791201,87643.0,87642.0,0.0036738]
[1763680293307,0.05127,87661.0,87642.0,0.0036738]
[1763680293476,0.05127,87661.0,87625.0,0.00041643]
[1763680293477,0.213046,87654.0,87625.0,0.00041643]
[1763680293681,0.05127,87661.0,87636.0,0.11476708]
[1763680293682,0.15504,87652.0,87636.0,0.11476708]
[1763680293882,0.271452,87654.0,87636.0,0.11476708]
[1763680294084,0.209738,87654.0,87636.0,0.11476708]
[1763680294284,0.05045931,87661.0,87636.0,0.11476708]
[1763680294495,0.01742,87656.0,87636.0,0.11476708]
[1763680294707,0.01712931,87661.0,87650.0,0.11476708]
[1763680295081,0.01712931,87661.0,87650.0,0.11476708]
[1763680295559,0.01712931,87661.0,87636.0,0.11476708]
[1763680295766,0.01712931,87661.0,87650.0,0.11476708]
[1763680296196,0.01712931,87661.0,87636.0,0.11476708]
[1763680296636,0.01790915,87655.0,87636.0,0.11476708]
[1763680297090,0.01790915,87655.0,87650.0,0.11476708]
[1763680297707,0.01742,87666.0,87650.0,0.11476708]
[1763680298901,0.01742,87666.0,87654.0,0.00329974]
[1763680299305,0.01742,87666.0,87650.0,0.11476708]
[1763680299756,0.1,87664.0,87637.0,0.11476708]
[1763680300018,0.1,87665.0,87651.0,0.11476708]
[1763680300375,0.1,87665.0,87637.0,0.11518351]
[1763680300777,0.1,87665.0,87637.0,0.00041643]
[1763680300778,0.03333,87664.0,87637.0,0.00041643]
[1763680300994,0.04074,87638.0,87637.0,0.00041643]
[1763680301191,0.14074,87638.0,87637.0,0.00041643]
[1763680301398,0.17407,87638.0,87637.0,0.00041643]
[1763680301593,0.07407,87638.0,87637.0,0.00041643]
[1763680301794,0.07407,87638.0,87637.0,5.186e-05]
[1763680301964,0.17407,87638.0,87637.0,5.186e-05]
[1763680302161,0.49707,87638.0,87637.0,5.186e-05]
[1763680304126,0.14074,87638.0,87637.0,5.186e-05]
[1763680304342,0.17407,87638.0,87637.0,5.186e-05]
[1763680304488,0.1950578,87638.0,87637.0,5.186e-05]
[1763680304689,0.17407,87638.0,87637.0,5.186e-05]
[1763680304909,0.17407,87638.0,87637.0,0.00388155]
[1763680305112,0.20557493,87638.0,87637.0,0.00388155]
[1763680306610,0.323,87647.0,87637.0,0.00388155]
[1763680306611,0.31420148,87647.0,87637.0,0.00388155]
[1763680306813,0.11476708,87650.0,87637.0,0.00388155]
[1763680306814,0.62752,87638.0,87637.0,5.186e-05]
[1763680307016,0.12752,87638.0,87637.0,5.186e-05]
[1763680307217,0.01742,87639.0,87637.0,5.186e-05]
[1763680307420,0.01742,87653.0,87637.0,5.186e-05]
[1763680307653,0.146713,87652.0,87637.0,5.186e-05]
[1763680307971,0.646713,87652.0,87637.0,5.186e-05]
[1763680308587,0.323,87651.0,87637.0,5.186e-05]
[1763680308839,0.323,87649.0,87637.0,5.186e-05]
[1763680309035,0.323,87645.0,87637.0,5.186e-05]
[1763680309236,0.210762,87644.0,87637.0,5.186e-05]
[1763680310223,0.02332,87638.0,87637.0,5.186e-05]
[1763680310448,0.152418,87638.0,87637.0,5.186e-05]
[1763680310728,0.185748,87638.0,87637.0,5.186e-05]
[1763680311202,0.323,87635.0,87580.0,0.00999999]
[1763680311412,0.05665,87638.0,87605.0,0.11476708]
[1763680311413,1.006417,87627.0,87605.0,0.11476708]
[1763680311615,0.262885,87627.0,87605.0,0.11476708]
[1763680311793,0.602624,87627.0,87605.0,0.11476708]
[1763680312157,0.323,87628.0,87591.0,0.11489206]
[1763680312158,2.921091,87626.0,87606.0,0.01369769]
[1763680312347,0.11476708,87626.0,87605.0,0.11476708]
[1763680312551,0.11476708,87626.0,87606.0,0.01369769]
[1763680312920,0.11476708,87626.0,87591.0,0.00012498]
[1763680313292,0.818033,87624.0,87591.0,0.00012498]
[1763680313482,0.323,87621.0,87591.0,0.00012498]
[1763680313778,1.516943,87620.0,87591.0,0.00012498]
[1763680313955,1.550273,87620.0,87591.0,0.00012498]
[1763680314158,0.495051,87618.0,87591.0,0.00012498]
[1763680314529,0.453958,87616.0,87591.0,0.00012498]
[1763680315042,0.413997,87616.0,87591.0,0.00012498]
[1763680315268,0.357639,87616.0,87591.0,0.00012498]
[1763680315469,0.181706,87616.0,87591.0,0.00012498]
[1763680315676,0.629933,87616.0,87591.0,0.00012498]
[1763680316523,0.303956,87615.0,87591.0,0.00012498]
[1763680317473,0.11476708,87611.0,87591.0,0.00012498]
[1763680317678,0.439689,87610.0,87591.0,0.00012498]
[1763680317878,0.01742,87592.0,87591.0,0.00012498]
[1763680319678,0.07407,87592.0,87591.0,0.00012498]
[1763680319877,0.01742,87601.0,87591.0,0.00012498]
[1763680320076,0.113007,87600.0,87591.0,0.00538967]
[1763680320281,0.113007,87600.0,87591.0,0.00012498]
[1763680321282,0.01742,87601.0,87535.0,0.11476708]
[1763680321283,4.813716,87592.0,87535.0,0.11476708]
[1763680321480,4.813716,87592.0,87559.0,0.11476708]
[1763680321481,0.01742,87567.0,87559.0,0.11476708]
[1763680321686,0.11476708,87581.0,87558.0,0.00528597]
[1763680321856,0.01742,87566.0,87558.0,0.00528597]
[1763680324078,0.02245,87559.0,87558.0,0.00528597]
[1763680324643,0.03944,87559.0,87558.0,0.00528597]
[1763680325263,0.01699,87573.0,87558.0,0.00528597]
[1763680326311,0.05224,87573.0,87558.0,0.00528597]
[1763680326648,0.05224,87573.0,87572.0,0.00585785]
[1763680326845,0.170112,87573.0,87572.0,0.00585785]
[1763680327088,0.192562,87573.0,87572.0,0.00585785]
[1763680327499,0.01699,87573.0,87572.0,0.00585785]
[1763680327698,0.03491833,87573.0,87572.0,0.00585785]
[1763680328260,0.09261833,87573.0,87558.0,0.00528597]
[1763680328468,1.833444,87559.0,87558.0,0.00528597]
[1763680328702,0.66914,87559.0,87558.0,0.00528597]
[1763680328905,0.567312,87559.0,87558.0,0.00528597]
[1763680329107,0.7170361,87559.0,87558.0,0.00528597]
[1763680329320,0.7394861,87559.0,87558.0,0.00528597]
[1763680329889,0.82661042,87559.0,87558.0,0.00528597]
[1763680330090,0.77089183,87559.0,87558.0,0.00528597]
[1763680330339,0.323,87556.0,87540.0,0.0002]
[1763680330536,5.24876698,87541.0,87540.0,0.00061692]
[1763680330784,0.35825,87559.0,87540.0,0.00061692]
[1763680331001,0.121868,87542.0,87540.0,0.00061692]
[1763680331212,0.01699,87543.0,87540.0,0.00061692]
[1763680331342,0.120424,87542.0,87540.0,0.00061692]
[1763680331545,0.34545,87541.0,87540.0,0.00061692]
[1763680331769,0.34545,87541.0,87530.0,0.0002]
[1763680331770,0.323,87539.0,87530.0,0.0002]
[1763680331978,0.323,87529.0,87500.0,10.0]
[1763680332180,0.03944,87531.0,87500.0,10.0]
[1763680332181,2.940015,87523.0,87500.0,10.0]
[1763680332384,1.670744,87523.0,87500.0,10.0]
[1763680332580,1.635494,87523.0,87501.0,0.01371412]
[1763680332779,0.729907,87523.0,87501.0,0.01371412]
[1763680333213,0.729907,87523.0,87500.0,10.0]
[1763680335117,0.75073688,87523.0,87500.0,10.0]
[1763680335364,0.01699,87531.0,87501.0,0.11476708]
[1763680335509,0.152087,87526.0,87502.0,0.01371397]
[1763680335710,0.323,87529.0,87502.0,0.01371397]
[1763680335893,0.500817,87523.0,87501.0,0.11476708]
[1763680336092,0.374713,87523.0,87501.0,0.11476708]
[1763680336297,0.399516,87523.0,87501.0,0.11476708]
[1763680336799,0.341816,87523.0,87501.0,0.11476708]
[1763680337000,0.53525,87539.0,87502.0,0.01371397]
[1763680337353,0.134406,87530.0,87510.0,0.03298]
[1763680337539,0.115225,87530.0,87502.0,0.03298]
[1763680337793,0.467797,87523.0,87501.0,0.11476708]
[1763680338110,0.5,87526.0,87501.0,0.11476708]
[1763680338111,0.186214,87526.0,87501.0,0.14774708]
[1763680338269,0.02245,87523.0,87500.0,10.0]
[1763680338475,1.379983,87523.0,87500.0,10.0]
[1763680338679,1.359117,87523.0,87500.0,10.0]
[1763680339092,1.147302,87523.0,87500.0,10.0]
[1763680339415,0.266303,87525.0,87522.0,0.0016605]
[1763680339616,0.14124,87523.0,87522.0,0.0001]
[1763680340031,0.323,87528.0,87522.0,0.0001]
[1763680340275,0.553157,87540.0,87522.0,0.0001]
[1763680340488,0.23299408,87542.0,87522.0,0.0001]
[1763680340659,0.5,87541.0,87522.0,0.0001]
[1763680340869,0.192065,87559.0,87542.0,0.00849]